bitfinex/quotes_SOLUSD_20250817
["timestamp","ask_amount","ask_price","bid_price","bid_amount"]
[1755432558494,5.85063082,193.4,193.39,1e-08]
[1755432559195,0.68000001,193.4,193.39,1e-08]
[1755432563711,8.0160106,193.4,193.39,1e-08]
[1755432564995,4.15452196,193.4,193.39,1e-08]
[1755432565196,8.01745008,193.4,193.39,1e-08]
[1755432567931,44.25745008,193.4,193.39,1e-08]
[1755432568223,49.42808089,193.4,193.39,1e-08]
[1755432573410,49.42808089,193.4,193.37,0.03]
[1755432573602,8.01745007,193.39,193.36,0.03]
[1755432573796,7.33745007,193.38,193.36,0.03]
[1755432574001,7.33745007,193.37,193.36,0.03]
[1755432574198,4.15452195,193.37,193.36,0.03]
[1755432574440,8.01415637,193.37,193.36,0.03]
[1755432574943,13.18558937,193.37,193.36,0.03]
[1755432575108,49.42558937,193.37,193.36,0.03]
[1755432580532,51.49871837,193.37,193.36,0.03]
[1755432583304,51.48840447,193.37,193.36,0.03]
[1755432584029,51.4876162,193.37,193.36,0.03]
[1755432584817,15.2476162,193.37,193.36,0.03]
[1755432585021,49.4144872,193.37,193.36,0.03]
[1755432585541,13.1744872,193.37,193.36,0.03]
[1755432585714,45.93996525,193.37,193.36,0.03]
[1755432585920,49.4144872,193.37,193.36,0.03]
[1755432589233,12.4944872,193.37,193.36,0.03]
[1755432589443,48.73527416,193.37,193.36,0.03]
[1755432589818,49.41527416,193.37,193.36,0.03]
[1755432592545,49.41347429,193.37,193.36,0.03]
[1755432593122,49.41343333,193.37,193.36,0.03]
[1755432595752,49.47343333,193.37,193.36,0.03]
[1755432600955,48.79343333,193.37,193.36,0.03]
[1755432601258,48.79517348,193.37,193.36,0.03]
[1755432602547,49.47517348,193.37,193.36,0.03]
[1755432604057,13.23517348,193.37,193.36,0.03]
[1755432604371,49.47517348,193.37,193.36,0.03]
[1755432606957,13.23517348,193.37,193.36,0.03]
[1755432607452,49.45517348,193.37,193.36,0.03]
[1755432609613,45.60595495,193.37,193.36,0.03]
[1755432609820,49.46326654,193.37,193.36,0.03]
[1755432613496,53.80514491,193.37,193.36,0.03]
[1755432614382,55.75611336,193.37,193.36,0.03]
[1755432615808,55.7567061,193.37,193.36,0.03]
[1755432617510,7.39183354,193.37,193.36,0.06]
[1755432617694,43.61183354,193.37,193.36,0.06]
[1755432618299,43.61183354,193.37,193.36,0.03]
[1755432618701,39.75452195,193.37,193.36,0.03]
[1755432618908,43.62243006,193.37,193.36,0.03]
[1755432622189,43.62243006,193.37,193.36,0.06]
[1755432624200,43.62243006,193.37,193.36,0.03]
[1755432627733,44.32243006,193.37,193.36,0.03]
[1755432628020,44.32078853,193.37,193.36,0.03]
[1755432629821,49.49222153,193.37,193.36,0.03]
[1755432633527,81.79491992,193.37,193.36,0.03]
[1755432633837,26.0,193.35,193.34,0.03]
[1755432633997,45.49387834,193.35,193.33,0.03]
[1755432634203,9.99387834,193.34,193.33,0.03]
[1755432634829,14.34212623,193.34,193.33,0.03]
[1755432635014,49.41302397,193.34,193.33,0.03]
[1755432637222,49.41132876,193.34,193.33,0.03]
[1755432637613,49.41103078,193.34,193.33,0.03]
[1755432639742,49.4101243,193.34,193.33,0.03]
[1755432644725,53.75837219,193.34,193.33,0.03]
[1755432646032,49.89500528,193.34,193.33,0.03]
[1755432646232,55.83013103,193.34,193.33,0.03]
[1755432646846,55.82989671,193.34,193.33,0.03]
[1755432647055,53.75644471,193.34,193.33,0.03]
[1755432647213,53.05644471,193.34,193.33,0.03]
[1755432648036,53.71644471,193.34,193.33,0.03]
[1755432648949,55.66636099,193.34,193.33,0.03]
[1755432649326,53.71644471,193.34,193.33,0.03]
[1755432652442,49.36819682,193.34,193.33,0.03]
[1755432655354,49.36526612,193.34,193.33,0.03]
[1755432660130,48.70526612,193.34,193.33,0.03]
[1755432663051,48.76526612,193.34,193.33,0.03]
[1755432663573,7.39638248,193.34,193.33,0.09]
[1755432663859,0.06,193.34,193.33,0.09]
[1755432664776,0.06,193.34,193.33,0.60725029]
[1755432665343,0.06,193.38,193.33,10.60725029]
[1755432665551,0.06,193.38,193.37,26.0]
[1755432665763,0.06,193.38,193.37,26.5171433]
[1755432666155,0.06,193.39,193.38,26.0]
[1755432666470,0.06,193.39,193.38,26.06]
[1755432666855,0.06,193.39,193.38,28.131305]
[1755432667670,1e-08,193.41,193.39,31.17089818]
[1755432667853,1e-08,193.41,193.4,0.51706308]
[1755432668176,1e-08,193.41,193.4,0.57706308]
[1755432669244,1e-08,193.41,193.4,5.74769389]
[1755432675787,1e-08,193.41,193.4,88.51878389]
[1755432679079,1e-08,193.41,193.4,88.45878389]
[1755432679800,0.72000001,193.41,193.4,87.94172081]
[1755432680093,0.72000001,193.41,193.4,85.87063081]
[1755432680388,0.72000001,193.41,193.4,111.87063081]
[1755432681170,0.72000001,193.41,193.4,111.90063081]
[1755432682168,0.72000001,193.41,193.4,106.73]
[1755432684193,0.72000001,193.41,193.4,111.90063081]
[1755432685183,0.72000001,193.41,193.4,85.90063081]
[1755432686396,0.72000001,193.41,193.4,80.73]
[1755432687794,0.72000001,193.41,193.4,85.90063081]
[1755432688771,1e-08,193.41,193.4,85.90063081]
[1755432690994,1e-08,193.41,193.4,122.06063081]
[1755432692892,0.72000001,193.41,193.4,0.03]
[1755432693079,0.72000001,193.41,193.38,0.03]
[1755432693695,0.72000001,193.41,193.36,0.03]
[1755432694902,5.17063081,193.4,193.36,0.03]
[1755432695403,0.72,193.39,193.36,0.03]
[1755432697695,5.89095378,193.39,193.36,0.03]
[1755432698108,0.72,193.38,193.36,0.03]
[1755432702818,5.89120969,193.38,193.36,0.03]
[1755432703002,0.72,193.38,193.36,0.03]
[1755432703193,0.72,193.37,193.36,0.03]
[1755432707904,5.891433,193.37,193.36,0.03]
[1755432708604,9.7453101,193.37,193.36,0.03]
[1755432708804,13.19986352,193.37,193.36,0.03]
[1755432709316,9.7453101,193.37,193.36,0.03]
[1755432710326,5.891433,193.37,193.36,0.03]
[1755432714128,9.74365206,193.37,193.36,0.03]
[1755432715602,45.90365206,193.37,193.36,0.03]
[1755432715901,49.35820548,193.37,193.36,0.03]
[1755432718000,45.50598642,193.37,193.36,0.03]
[1755432718204,49.35650642,193.37,193.36,0.03]
[1755432723247,49.35859158,193.37,193.36,0.03]
[1755432726031,45.50598642,193.37,193.36,0.03]
[1755432726228,49.36045539,193.37,193.36,0.03]
[1755432726745,49.36080366,193.37,193.36,0.03]
[1755432730044,51.43382566,193.37,193.36,0.03]
[1755432730428,49.36080366,193.37,193.36,0.03]
[1755432732317,51.43382666,193.37,193.36,0.03]
[1755432732522,49.36080366,193.37,193.36,0.03]
[1755432733327,13.20080366,193.37,193.36,0.03]
[1755432733546,49.36080366,193.37,193.36,0.03]
[1755432735342,49.36701128,193.37,193.36,0.03]
[1755432735748,49.36719594,193.37,193.36,0.03]
[1755432737330,51.32047407,193.37,193.36,0.03]
[1755432741551,55.66872196,193.37,193.36,0.03]
[1755432744468,53.7238146,193.37,193.36,0.03]
[1755432744643,55.67891205,193.37,193.36,0.03]
[1755432744963,55.67900964,193.37,193.36,0.03]
[1755432745137,54.95900964,193.37,193.36,0.03]
[1755432747040,7.3242313,193.37,193.36,0.15]
[1755432747248,43.4842313,193.37,193.36,0.15]
[1755432750467,43.48593418,193.37,193.36,0.15]
[1755432750940,7.32593418,193.37,193.36,15.25621557]
[1755432753574,7.32653903,193.37,193.36,15.25621557]
[1755432754249,7.32653903,193.37,193.36,15.13621557]
[1755432754749,7.32653903,193.37,193.36,0.03]
[1755432754955,8.01653903,193.37,193.36,0.03]
[1755432755472,44.17653903,193.37,193.36,0.03]
[1755432756154,43.48653903,193.37,193.36,0.03]
[1755432760174,44.17653903,193.37,193.36,0.03]
[1755432761569,44.17590916,193.37,193.36,0.03]
[1755432762573,40.30455342,193.37,193.36,0.03]
[1755432762758,44.17579626,193.37,193.36,0.03]
[1755432768994,43.48579626,193.37,193.36,0.03]
[1755432771870,43.48539576,193.37,193.36,0.03]
[1755432773386,44.19539576,193.37,193.36,0.03]
[1755432774874,44.19555039,193.37,193.36,0.03]
[1755432780872,44.19711548,193.37,193.36,0.03]
[1755432781266,40.32455342,193.37,193.36,0.03]
[1755432781480,44.1972314,193.37,193.36,0.03]
[1755432784798,49.3686644,193.37,193.36,0.03]
[1755432785693,44.1972314,193.37,193.36,0.03]
[1755432788682,43.4872314,193.37,193.36,0.03]
[1755432789086,43.49093491,193.37,193.36,0.03]
[1755432789487,43.49178685,193.37,193.36,0.03]
[1755432789800,44.20178685,193.37,193.36,0.03]
[1755432792181,44.20508674,193.37,193.36,0.03]
[1755432794207,46.16627086,193.37,193.36,0.03]
[1755432797111,46.16627669,193.37,193.36,0.03]
[1755432798124,42.28574337,193.37,193.36,0.03]
[1755432798313,46.16651945,193.37,193.36,0.03]
[1755432798804,46.16652102,193.37,193.36,0.03]
[1755432800119,46.16647125,193.37,193.36,0.03]
[1755432801017,42.28570687,193.37,193.36,0.03]
[1755432802517,44.2052516,193.37,193.36,0.03]
[1755432802819,46.16634644,193.37,193.36,0.03]
[1755432809726,46.16512847,193.37,193.36,0.03]
[1755432812733,46.16497607,193.37,193.36,0.03]
[1755432814727,10.00497607,193.37,193.34,14.66621557]
[1755432814933,43.45445809,193.36,193.34,5.29213363]
[1755432815124,7.33445809,193.35,193.34,5.29213363]
[1755432815806,7.33398122,193.35,193.34,5.17213363]
[1755432818534,7.33398122,193.35,193.34,5.20213363]
[1755432818737,3.45455342,193.35,193.34,5.20213363]
[1755432818935,7.33410874,193.35,193.34,5.20213363]
[1755432819626,7.33410874,193.35,193.34,0.03]
[1755432820835,8.03410874,193.35,193.34,0.03]
[1755432827940,4.15455342,193.35,193.34,0.03]
[1755432828132,8.03471503,193.35,193.34,0.03]
[1755432831151,15.16721943,193.35,193.34,0.03]
[1755432831529,19.51546732,193.35,193.34,0.03]
[1755432834053,14.34159578,193.35,193.34,0.03]
[1755432835149,9.99334789,193.35,193.34,0.03]
[1755432835528,10.05334789,193.35,193.34,0.03]
[1755432836539,8.09302729,193.35,193.34,0.03]
[1755432837028,4.21455342,193.35,193.34,0.03]
[1755432837230,8.09223286,193.35,193.34,0.03]
[1755432837667,43.49223286,193.35,193.34,0.03]
[1755432837962,44.16225661,193.35,193.34,0.03]
[1755432841936,46.12159312,193.35,193.34,0.03]
[1755432842544,44.14225661,193.35,193.34,0.03]
[1755432842757,43.47225661,193.35,193.34,0.03]
[1755432843435,44.14225661,193.35,193.34,0.03]
[1755432844545,43.47225661,193.35,193.34,15.13621557]
[1755432844738,7.39225661,193.35,193.34,15.13621557]
[1755432844945,3.51455342,193.35,193.34,15.13621557]
[1755432845145,7.39251098,193.35,193.34,15.13621557]
[1755432846532,7.39251098,193.35,193.34,5.20223544]
[1755432846731,7.39251098,193.35,193.34,20.42845101]
[1755432846931,3.51455342,193.35,193.34,35.56466601]
[1755432847743,0.06,193.35,193.34,35.56466601]
[1755432849144,0.06,193.35,193.34,35.44466601]
[1755432850244,0.06,193.35,193.34,116.14466601]
[1755432850445,0.06,193.35,193.34,101.00845101]
[1755432853344,0.73,193.35,193.34,101.00845101]
[1755432854267,0.73,193.35,193.34,95.83621557]
[1755432856166,4.60313796,193.35,193.34,15.13621557]
[1755432856367,8.08921533,193.35,193.34,15.13621557]
[1755432857155,13.26118326,193.35,193.34,15.13621557]
[1755432859983,8.08921533,193.35,193.34,15.13621557]
[1755432860585,7.41921533,193.35,193.34,15.13621557]
[1755432860967,0.06,193.35,193.34,15.13621557]
[1755432861686,0.06,193.35,193.34,51.21621557]
[1755432861860,0.06,193.35,193.34,56.38845101]
[1755432862055,0.06,193.35,193.34,137.08845101]
[1755432868293,0.76,193.35,193.34,131.91621557]
[1755432868765,0.76,193.35,193.34,95.83621557]
[1755432869768,4.2449736,193.35,193.34,95.83621557]
[1755432871090,4.24498232,193.35,193.34,95.83621557]
[1755432871287,3.54499263,193.35,193.34,101.00845101]
[1755432871478,0.06,193.35,193.34,101.00845101]
[1755432874868,0.06,193.35,193.34,137.06845101]
[1755432881104,0.06,193.35,193.34,137.18845101]
[1755432881403,0.06,193.35,193.34,137.06845101]
[1755432885783,0.06,193.35,193.34,137.18845101]
[1755432885983,0.06,193.35,193.34,139.26029201]
[1755432889813,0.06,193.35,193.34,139.14029201]
[1755432890015,0.06,193.35,193.34,137.06845101]
[1755432890216,0.06,193.35,193.34,139.14029301]
[1755432893995,0.06,193.35,193.34,139.26029301]
[1755432896214,0.06,193.35,193.34,139.14029301]
[1755432896420,0.06,193.35,193.34,137.06845101]
[1755432899622,0.77,193.35,193.34,137.06845101]
[1755432900717,0.06,193.35,193.34,137.18845101]
[1755432900901,0.06,193.37,193.36,41.10621557]
[1755432901095,0.06,193.37,193.36,77.14621557]
[1755432902649,0.77,193.37,193.36,77.14621557]
[1755432902823,0.77,193.37,193.36,82.31791602]
[1755432903339,0.06,193.37,193.36,82.31791602]
[1755432904016,0.06,193.38,193.37,15.10621557]
[1755432904220,0.06,193.38,193.37,15.62335887]
[1755432904446,0.06,193.38,193.37,15.10621557]
[1755432904745,0.06,193.38,193.37,20.27764857]
[1755432905328,0.77,193.38,193.37,20.27764857]
[1755432909154,0.77,193.38,193.34,80.73]
[1755432909446,3.48242663,193.37,193.34,0.03]
[1755432909617,5.94116558,193.38,193.34,0.03]
[1755432909822,4.19242994,193.37,193.34,36.07]
[1755432910044,0.06,193.38,193.34,36.07]
[1755432910045,0.71,193.36,193.34,0.03]
[1755432911332,0.71,193.36,193.35,15.10621557]
[1755432913417,0.06,193.38,193.35,15.10621557]
[1755432913625,0.06,193.38,193.35,20.2781835]
[1755432913824,0.06,193.38,193.37,41.10621557]
[1755432914019,0.06,193.38,193.37,77.14621557]
[1755432914928,0.06,193.38,193.37,82.31764857]
[1755432916053,0.06,193.38,193.37,83.50479187]
[1755432916227,0.06,193.38,193.37,82.98764857]
[1755432916555,0.06,193.38,193.37,82.31764857]
[1755432917162,0.06,193.38,193.37,163.01764857]
[1755432917655,0.06,193.38,193.37,163.68764857]
[1755432919556,0.06,193.38,193.37,163.01764857]
[1755432920125,0.06,193.38,193.37,165.08916757]
[1755432920326,0.72,193.38,193.37,165.08916757]
[1755432920527,0.72,193.38,193.37,163.01764857]
[1755432921749,0.72,193.38,193.37,126.97764857]
[1755432924564,0.72,193.38,193.37,15.10621557]
[1755432925350,4.20237083,193.38,193.37,15.10621557]
[1755432925664,8.07199917,193.38,193.37,15.10621557]
[1755432925840,4.20237083,193.38,193.37,15.10621557]
[1755432926045,13.24339888,193.38,193.37,15.10621557]
[1755432930255,8.0722333,193.38,193.37,15.10621557]
[1755432935077,8.06726948,193.38,193.37,15.10621557]
[1755432935369,8.06709717,193.38,193.37,15.10621557]
[1755432935871,8.06687525,193.38,193.37,15.10621557]
[1755432937270,8.06687525,193.38,193.37,15.13621557]
[1755432938259,8.06587288,193.38,193.37,15.13621557]
[1755432940393,13.23703846,193.38,193.37,15.13621557]
[1755432941797,8.06587288,193.38,193.37,15.13621557]
[1755432944179,8.06453713,193.38,193.37,15.13621557]
[1755432947102,8.05827463,193.38,193.37,15.13621557]
[1755432953087,4.19610833,193.38,193.37,15.13621557]
[1755432953286,8.05842049,193.38,193.37,15.13621557]
[1755432953514,13.22958607,193.38,193.37,15.13621557]
[1755432953798,15.18131459,193.38,193.37,15.13621557]
[1755432954100,51.20131459,193.38,193.37,15.13621557]
[1755432954487,47.72520626,193.38,193.37,15.13621557]
[1755432955609,51.20102978,193.38,193.37,15.13621557]
[1755432955798,47.72520626,193.38,193.37,15.13621557]
[1755432957207,45.77347774,193.38,193.37,15.13621557]
[1755432957705,49.24848149,193.38,193.37,15.13621557]
[1755432960117,51.19962543,193.38,193.37,15.13621557]
[1755432960709,51.25962543,193.38,193.37,15.13621557]
[1755432961392,45.44616933,193.38,193.37,15.13621557]
[1755432961592,51.25959162,193.38,193.37,15.13621557]
[1755432964394,51.26129215,193.38,193.37,15.13621557]
[1755432965213,50.54129215,193.38,193.37,15.13621557]
[1755432966010,51.26129215,193.38,193.37,15.13621557]
[1755432966905,55.60504684,193.38,193.37,0.03]
[1755432967293,51.26350315,193.38,193.37,0.03]
[1755432970202,47.40161372,193.38,193.37,0.03]
[1755432970409,51.27631639,193.38,193.37,0.03]
[1755432970914,51.27585633,193.38,193.37,0.03]
[1755432972425,57.06752925,193.38,193.35,0.03]
[1755432972610,4.35430944,193.36,193.35,0.03]
[1755432972798,49.67900019,193.36,193.35,0.03]
[1755432972999,50.39900019,193.36,193.35,0.03]
[1755432974218,55.57070064,193.36,193.35,0.03]
[1755432979217,51.6975931,193.36,193.35,0.03]
[1755432979410,55.56037206,193.36,193.35,0.03]
[1755432979915,55.56031911,193.36,193.35,0.03]
[1755432980829,77.20600967,193.36,193.34,0.03]
[1755432981129,10.01430922,193.35,193.34,0.03]
[1755432981834,12.08743822,193.35,193.34,0.03]
[1755432982315,17.25940615,193.35,193.34,0.03]
[1755432983319,17.25745051,193.35,193.33,0.03]
[1755432983528,26.0,193.31,193.29,1e-08]
[1755432983731,26.0,193.27,193.23,0.02469991]
[1755432983912,30.34296901,193.24,193.23,0.02469991]
[1755432984115,75.65532259,193.24,193.23,0.02469991]
[1755432984314,77.2072656,193.24,193.23,0.02469991]
[1755432985227,75.25598993,193.24,193.23,0.02469991]
[1755432985630,77.33019393,193.24,193.23,0.02469991]
[1755432986542,74.53598993,193.24,193.23,0.02469991]
[1755432987843,34.64991577,193.24,193.23,0.02469991]
[1755432988028,70.66991577,193.24,193.23,0.02469991]
[1755432988230,70.66991577,193.24,193.23,0.05469991]
[1755432989448,71.38991577,193.24,193.23,0.05469991]
[1755432989749,70.66991577,193.24,193.23,0.05469991]
[1755432992850,3.47500375,193.24,193.23,0.75469991]
[1755432993046,4.17623533,193.3,193.24,15.10621557]
[1755432993255,44.66980871,193.29,193.25,0.7]
[1755432993429,3.45623533,193.28,193.25,0.7]
[1755432993629,36.04,193.27,193.23,0.75469991]
[1755432993830,36.04,193.27,193.24,0.7]
[1755432994148,41.21418713,193.27,193.24,0.7]
[1755432995864,5.06296901,193.33,193.26,15.10621557]
[1755432996030,3.45715321,193.33,193.28,15.10621557]
[1755432996352,36.04,193.32,193.3,15.10621557]
[1755432996554,36.04,193.32,193.31,15.80621557]
[1755432997127,36.06,193.33,193.31,15.80621557]
[1755432997354,36.06,193.34,193.33,15.10621557]
[1755432997659,39.51888501,193.34,193.33,15.10621557]
[1755432998060,39.51888501,193.34,193.3,15.80621557]
[1755432998234,3.45888501,193.33,193.3,15.80621557]
[1755432999324,0.06,193.32,193.3,15.80621557]
[1755433001464,36.1,193.32,193.3,15.80621557]
[1755433002443,41.99288476,193.32,193.28,15.80621557]
[1755433002930,0.72,193.31,193.27,15.10621557]
[1755433003129,39.50008816,193.3,193.27,15.10621557]
[1755433003338,4.18008816,193.29,193.24,15.10621557]
[1755433003543,36.04,193.28,193.25,0.7]
[1755433004260,36.04,193.28,193.26,15.10621557]
[1755433004858,36.04,193.28,193.26,0.72]
[1755433005032,36.04,193.28,193.25,15.10621557]
[1755433005232,36.04,193.28,193.26,0.72]
[1755433005660,41.21386232,193.28,193.25,15.82621557]
[1755433005960,41.88386232,193.28,193.23,15.88091548]
[1755433006261,41.88386232,193.28,193.25,15.10621557]
[1755433006438,41.21386232,193.28,193.25,15.10621557]
[1755433006639,41.88386232,193.28,193.25,15.10621557]
[1755433007042,41.88386232,193.28,193.23,15.16091548]
[1755433007248,0.67,193.27,193.23,0.05469991]
[1755433007440,0.67,193.26,193.23,0.05469991]
[1755433007638,36.08,193.25,193.23,0.05469991]
[1755433009555,36.75,193.25,193.23,0.05469991]
[1755433010271,36.08,193.25,193.23,0.05469991]
[1755433011744,36.75,193.25,193.23,0.05469991]
[1755433011953,36.08,193.25,193.23,0.05469991]
[1755433012274,36.75,193.25,193.23,0.05469991]
[1755433013273,0.67,193.24,193.23,0.05469991]
[1755433015887,36.08,193.25,193.23,0.77469991]
[1755433016555,36.08,193.25,193.23,0.05469991]
[1755433017885,36.08,193.25,193.24,15.10621557]
[1755433019784,5.17388087,193.28,193.24,15.82621557]
[1755433019995,39.50551075,193.27,193.24,15.82621557]
[1755433020163,3.46551075,193.26,193.24,15.82621557]
[1755433020372,36.04,193.27,193.24,15.82621557]
[1755433020668,3.46583139,193.26,193.24,15.10621557]
[1755433020905,36.04,193.27,193.24,15.10621557]
[1755433021070,3.46583139,193.26,193.24,15.10621557]
[1755433021392,36.04,193.27,193.24,15.82621557]
[1755433021688,3.46619839,193.26,193.24,15.82621557]
[1755433021988,36.04,193.27,193.24,15.82621557]
[1755433022292,3.46631275,193.26,193.24,15.82621557]
[1755433022586,36.04,193.27,193.24,15.82621557]
[1755433022791,3.4667458,193.26,193.24,15.82621557]
[1755433022960,36.04,193.27,193.24,15.82621557]
[1755433023160,3.4667458,193.26,193.24,20.28110456]
[1755433023377,3.4667458,193.29,193.26,15.10621557]
[1755433023574,0.06,193.3,193.27,0.72]
[1755433023778,0.06,193.3,193.28,15.10621557]
[1755433023972,0.06,193.3,193.29,0.72]
[1755433024558,0.06,193.3,193.29,5.89357338]
[1755433026394,0.06,193.3,193.29,7.96616538]
[1755433028287,0.06,193.32,193.31,41.10621557]
[1755433028488,0.06,193.32,193.31,77.68351938]
[1755433028700,0.06,193.34,193.32,15.10621557]
[1755433028909,0.06,193.34,193.33,15.62346586]
[1755433029068,0.06,193.38,193.33,15.62346586]
[1755433029069,0.06,193.38,193.36,41.10621557]
[1755433029393,0.06,193.38,193.36,77.18621557]
[1755433029564,1e-08,193.37,193.36,78.42338561]
[1755433029770,1e-08,193.37,193.36,82.66812142]
[1755433030494,0.06,193.4,193.39,41.10621557]
[1755433030687,0.06,193.4,193.39,82.91420356]
[1755433030999,0.06,193.4,193.39,83.63420356]
[1755433036673,0.06,193.4,193.39,164.33420356]
[1755433036878,0.06,193.4,193.39,163.81711375]
[1755433039391,0.06,193.4,193.39,127.69711375]
[1755433039600,0.06,193.4,193.39,163.79711375]
[1755433040216,0.06,193.4,193.39,127.69711375]
[1755433040388,0.06,193.4,193.39,168.96024265]
[1755433041291,0.06,193.44,193.42,80.63999998]
[1755433041622,1e-08,193.44,193.43,5.16982887]
[1755433041919,1e-08,193.44,193.43,86.48982885]
[1755433042911,1e-08,193.44,193.43,87.00681173]
[1755433045227,1e-08,193.44,193.43,97.00681173]
[1755433046522,1e-08,193.44,193.43,86.32681173]
[1755433046720,0.66000001,193.44,193.43,85.80982885]
[1755433046920,0.66000001,193.44,193.43,121.90982885]
[1755433052520,1e-08,193.44,193.43,121.90982885]
[1755433053339,1e-08,193.44,193.43,122.58982885]
[1755433056245,1e-08,193.44,193.43,121.90982885]
[1755433057236,1e-08,193.44,193.43,122.58982885]
[1755433057534,0.06,193.45,193.43,122.58982885]
[1755433057535,0.06,193.45,193.44,80.63999997]
[1755433057718,0.06,193.45,193.44,81.83695613]
[1755433058634,0.06,193.45,193.44,87.00651775]
[1755433063214,0.06,193.46,193.45,85.74929436]
[1755433063413,0.06,193.46,193.45,121.80929436]
[1755433065651,0.06,193.46,193.45,121.78929436]
[1755433065835,0.74,193.46,193.45,121.78929436]
[1755433069045,0.06,193.46,193.45,121.78929436]
[1755433071257,0.74,193.46,193.45,121.78929436]
[1755433071633,0.06,193.46,193.45,121.78929436]
[1755433072728,8.05748627,193.46,193.45,80.57999997]
[1755433073042,8.05748627,193.46,193.45,116.59999997]
[1755433073227,8.05748627,193.46,193.45,121.76929436]
[1755433074235,7.37748627,193.46,193.45,121.76929436]
[1755433075358,4.20639931,193.46,193.45,121.76929436]
[1755433077053,3.52639931,193.46,193.45,121.76929436]
[1755433077461,4.20639931,193.46,193.45,121.76929436]
[1755433078358,4.21222073,193.46,193.45,80.57999997]
[1755433078666,4.21222073,193.46,193.45,116.65999997]
[1755433079650,13.24019538,193.46,193.43,80.60999997]
[1755433079856,8.01110636,193.45,193.43,116.70999997]
[1755433080039,4.15222073,193.44,193.43,116.70999997]
[1755433080439,4.15222073,193.44,193.43,80.60999997]
[1755433080440,8.01143824,193.44,193.43,80.60999997]
[1755433080661,8.01143824,193.44,193.43,0.03]
[1755433081554,15.13231477,193.44,193.43,0.03]
[1755433081745,13.18099986,193.44,193.43,0.03]
[1755433082360,15.13158235,193.44,193.43,0.03]
[1755433082661,15.13158235,193.44,193.41,0.03]
[1755433082967,17.68226096,193.43,193.41,0.03]
[1755433083268,9.28202073,193.42,193.41,0.03]
[1755433083470,19.46901625,193.42,193.41,0.03]
[1755433083777,26.0,193.39,193.37,0.03]
[1755433083952,9.28202073,193.38,193.33,0.03]
[1755433084151,26.0,193.34,193.28,2.70171729]
[1755433084343,26.0,193.34,193.24,5.17491202]
[1755433084344,8.01143824,193.33,193.24,5.17491202]
[1755433084651,7.99961282,193.32,193.24,5.17491202]
[1755433084963,4.15222073,193.31,193.24,5.17491202]
[1755433085144,3.47222073,193.33,193.24,5.17491202]
[1755433085344,0.68,193.3,193.24,5.17491202]
[1755433087751,0.68,193.32,193.27,26.0]
[1755433087945,0.68,193.32,193.28,26.0]
[1755433088267,0.68,193.31,193.28,26.0]
[1755433089070,0.68,193.3,193.28,26.0]
[1755433089252,0.68,193.32,193.29,5.17357338]
[1755433089672,0.68,193.31,193.29,5.17357338]
[1755433089869,0.68,193.34,193.29,5.17357338]
[1755433090069,3.45101306,193.36,193.3,0.72]
[1755433090070,0.68,193.36,193.3,0.72]
[1755433091481,0.68,193.36,193.31,5.17303812]
[1755433091677,8.61821636,193.4,193.31,5.17303812]
[1755433091888,0.68,193.35,193.31,5.17303812]
[1755433092187,3.44753045,193.4,193.31,5.17303812]
[1755433092487,0.68,193.39,193.31,31.89303812]
[1755433092792,0.68,193.39,193.34,26.0]
[1755433093297,0.68,193.38,193.34,26.0]
[1755433093787,5.16987669,193.43,193.34,26.0]
[1755433093788,5.17013702,193.42,193.35,5.17196793]
[1755433093974,3.44508411,193.44,193.35,5.17196793]
[1755433093975,0.68,193.4,193.35,5.17196793]
[1755433095273,0.68,193.4,193.32,5.169877]
[1755433095469,0.68,193.4,193.31,106.57999997]
[1755433095668,5.85082438,193.4,193.31,31.17278651]
[1755433095980,0.66,193.39,193.31,31.17278651]
[1755433096894,5.17116558,193.38,193.31,31.17278651]